fUSD/lending_fUSD_20260103
["ID","MTS","AMOUNT","RATE_DAILY","PERIOD"]
[400349770,1767411042488,-171.11,0.00042219,30]
[400349771,1767411042497,-178.84,0.00042219,30]
[400349772,1767411042509,-555.41,0.00042219,30]
[400349773,1767411042520,-150.0,0.00042219,30]
[400349774,1767411042530,-465.99,0.00042219,30]
[400349775,1767411042539,-171.11,0.00042219,30]
[400349776,1767411042550,-178.84,0.00042219,30]
[400349777,1767411042559,-171.11,0.00042219,30]
[400349778,1767411042569,-150.0,0.00042219,30]
[400349779,1767411042579,-465.99,0.00042219,30]
[400349780,1767411042590,-171.11,0.00042219,30]
[400349781,1767411042600,-178.84,0.00042219,30]
[400349782,1767411042610,-231.91,0.00042219,30]
[400349783,1767411042620,-150.0,0.00042219,30]
[400349784,1767411042631,-1604.36410467,0.00042266,4]
[400349785,1767411042640,-3208.72820934,0.00042275,4]
[400349786,1767411042650,-1265.0,0.00042286,2]
[400349787,1767411042660,-433.0,0.00042286,2]
[400349788,1767411042669,-913.0,0.00042286,2]
[400349789,1767411042680,-2434.0,0.00042286,2]
[400349790,1767411042690,-613.0,0.00042286,2]
[400349791,1767411042699,-4814.0,0.00042286,2]
[400349792,1767411042709,-604.45,0.0004232,12]
[400349793,1767411042719,-1604.36410467,0.00042469,4]
[400349794,1767411042728,-500.0,0.00042493,2]
[400349795,1767411042738,-150.62,0.00042493,30]
[400349796,1767411042747,-600.0,0.00042509,60]
[400349797,1767411042757,-1000.0,0.00042509,60]
[400349798,1767411042767,-500.0,0.00042509,60]
[400349799,1767411042776,-408.75537,0.0004252,120]
[400349800,1767411042785,-408.75538,0.0004252,120]
[400349801,1767411042795,-408.75537,0.0004252,120]
[400349802,1767411042805,-408.75538,0.0004252,120]
[400349803,1767411042814,-408.75537,0.0004252,120]
[400349804,1767411042824,-1604.36410467,0.00042536,4]
[400349805,1767411042833,-5482.79,0.00042546,120]
[400349806,1767411042843,-152.0,0.00042634,3]
[400349807,1767411042853,-151.0,0.000427,120]
[400349808,1767411042863,-1604.36410467,0.0004274,4]
[400349809,1767411042873,-4473.0,0.0004275,7]
[400349810,1767411042883,-247.73,0.0004275,120]
[400349811,1767411042892,-806.78423843,0.0004275,120]
[400349812,1767411042902,-249.83,0.0004275,120]
[400349813,1767411042912,-388.35490852,0.0004275,120]
[400349814,1767411042921,-187.91,0.00042775,14]
[400349815,1767411042930,-1604.36410467,0.00042799,4]
[400349816,1767411042940,-509.99400003,0.00042809,31]
[400349817,1767411042950,-176.35313701,0.00042813,30]
[400349818,1767411042959,-168.49029373,0.00042813,19]
[400349819,1767411042969,-1604.36410467,0.00042814,4]
[400349820,1767411042978,-1604.36410467,0.00042829,4]
[400349821,1767411042987,-1604.36410467,0.00042844,4]
[400349822,1767411042996,-1604.36410467,0.00042858,4]
[400349823,1767411043006,-1604.36410467,0.00042874,4]
[400349824,1767411043016,-1604.36410467,0.00042888,4]
[400349825,1767411043026,-1604.36410467,0.00042889,4]
[400349826,1767411043036,-20856.7333607,0.0004289,4]
[400349827,1767411043046,-589.42967998,0.0004289,4]
[400349828,1767411043055,-294.71483999,0.00042899,4]
[400349829,1767411043065,-5000.0,0.000429,120]
[400349830,1767411043074,-10000.0,0.000429,2]
[400349831,1767411043084,-255555.0,0.000429,120]
[400349832,1767411043095,-154.6511149,0.000429,9]
[400349833,1767411043105,-151.0,0.000429,10]
[400349834,1767411043115,-151.0,0.000429,10]
[400349835,1767411043124,-151.0,0.000429,10]
[400349836,1767411043134,-151.0,0.000429,120]
[400349837,1767411043144,-600.0,0.000429,120]
[400349838,1767411043154,-213.094626,0.000429,15]
[400349839,1767411043164,-213.094626,0.000429,15]
[400349840,1767411043174,-213.094626,0.000429,15]
[400349841,1767411043183,-151.725547,0.000429,30]
[400349842,1767411043193,-213.094626,0.000429,15]
[400349843,1767411043203,-180.194047,0.000429,120]
[400349844,1767411043213,-213.952354,0.000429,120]
[400349845,1767411043223,-153.094855,0.000429,28]
[400349846,1767411043233,-153.094855,0.000429,28]
[400349847,1767411043242,-153.094855,0.000429,28]
[400349848,1767411043252,-153.094855,0.000429,28]
[400349849,1767411043261,-151.0,0.000429,120]
[400349850,1767411043271,-168.49029373,0.000429,19]
[400349851,1767411043282,-249.243377,0.000429,120]
[400349852,1767411043292,-182.112036,0.000429,120]
[400349853,1767411043302,-154.65111489,0.00042907,9]
[400349854,1767411043311,-150.0,0.00042907,120]
[400349855,1767411043322,-2533.2390713,0.00042909,2]
[400349856,1767411043332,-43158.4852086,0.00042909,2]
[400349857,1767411043342,-7855.3357728,0.00042909,2]
[400349858,1767411043352,-4912.6061102,0.00042909,2]
[400349859,1767411043361,-5770.39181592,0.00042909,2]
[400349860,1767411043378,-500.0,0.00042909,2]
[400349861,1767411043389,-468.88081164,0.00042909,2]
[400349862,1767411043400,-303.3499955,0.00042909,2]
[400349863,1767411043416,-588.0,0.00042909,2]
[400349864,1767411043502,-601.54875445,0.00039286,2]
[400349865,1767411043515,-500.0,0.00039286,2]
[400349866,1767411043528,-302.45124555,0.00039286,2]
[400349867,1767411043537,-209.60558884,0.00042909,2]
[400349868,1767411044271,-660.63,0.00042082,30]
[400349869,1767411044282,-344.54,0.00042219,30]
[400349870,1767411044291,-228.18525829,0.00042286,2]
[400349871,1767411044308,-1175.81474171,0.00042286,2]
[400349872,1767411044319,-175.39174538,0.00042909,2]
[400349873,1767411044331,-628.3168439,0.00042909,2]
[400349874,1767411044343,-1494.489,0.00042909,2]
[400349879,1767411045872,-150.0,0.00042219,30]
[400349880,1767411045883,-111.37789957,0.00042909,2]
[400349881,1767411045895,-2498.80116291,0.00042909,2]
[400349882,1767411045906,-3162.82026835,0.00042909,2]
[400349888,1767411245198,447.12,0.00029877,2]
[400349889,1767411245224,60.88,0.00029877,2]
[400349890,1767411296258,151.0,0.00029502,2]
[400349891,1767411310549,273.95789449,0.00016973,2]
[400349892,1767411310577,226.04210551,0.00016973,2]
[400349893,1767411311703,502.77548159,0.00016973,2]
[400349894,1767411315127,458.05520074,0.00016973,2]
[400349895,1767411320834,500.0,0.00016973,2]
[400349896,1767411321105,500.0,0.00016973,2]
[400349897,1767411322851,500.0,0.00016973,2]
[400349905,1767411483147,500.0,0.00016973,2]
[400349906,1767411543186,500.0,0.00016973,2]
[400349907,1767411604439,2.7663789,0.00016973,2]
[400349908,1767411604465,497.2336211,0.00016973,2]
[400349911,1767411845461,191.49123502,0.00016973,2]
[400349913,1767411904101,500.65057725,0.00016973,2]
[400349914,1767411910156,195.0,0.00032864,120]
[400349915,1767411910255,195.0,0.00031255,120]
[400349916,1767411995805,1054.3,0.00032877,120]
[400350088,1767412231860,-508.0,0.00029877,2]
[400350090,1767412231872,-195.0,0.00033139,120]
[400350092,1767412231883,-78.96064254,0.00034889,7]
[400350096,1767412231911,-429.03935746,0.00034889,7]
[400350098,1767412231923,-1600.0,0.00035859,3]
[400350100,1767412231937,-200.0,0.0003586,2]
[400350103,1767412231947,-207.4,0.0003586,2]
[400350105,1767412231959,-215.0738,0.0003586,2]
[400350107,1767412231971,-223.0315306,0.0003586,2]
[400350109,1767412231984,-231.28369723,0.0003586,2]
[400350111,1767412232000,-239.84119403,0.0003586,2]
[400350112,1767412232015,-366.69384622,0.0003586,2]
[400350113,1767412232027,-195.0,0.00036452,120]
[400350114,1767412232038,-187.43891347,0.000372,120]
[400350115,1767412232050,-303.88896894,0.00038801,2]
[400350116,1767412232061,-364.51871262,0.00038801,2]
[400350117,1767412232073,-27.73262759,0.00038801,2]
[400350118,1767412232087,-272.26737241,0.00038801,2]
[400350119,1767412232098,-303.51349633,0.00038801,2]
[400350120,1767412232110,-578.10034199,0.00038801,2]
[400350121,1767412232121,-616.00617618,0.00038801,2]
[400350122,1767412232134,-304.68719061,0.00038801,2]
[400350123,1767412232145,-49.61119044,0.00038801,2]
[400350124,1767412232159,-254.2777785,0.00038801,2]
[400350125,1767412232171,-364.51871262,0.00038801,2]
[400350126,1767412232182,-300.0,0.00038801,2]
[400350127,1767412232194,-80.20350888,0.00038801,2]
[400350128,1767412232207,-223.30998745,0.00038801,2]
[400350129,1767412232218,-80.97915786,0.00038801,2]
[400350130,1767412232231,-497.12118413,0.00038801,2]
[400350132,1767412232242,-616.00617618,0.00038801,2]
[400350134,1767412232253,-304.68719061,0.00038801,2]
[400350137,1767412232264,-1124.99927905,0.00039133,2]
[400350139,1767412232277,-5712.55148148,0.00039133,2]
[400350141,1767412232290,-854.31250193,0.00039133,2]
[400350144,1767412232302,-653.94812092,0.00039133,2]
[400350148,1767412237984,-2642.1840907,0.00039133,2]
[400350149,1767412237999,-500.0,0.00039149,20]
[400350150,1767412238012,-25381.75809167,0.00039174,30]
[400350151,1767412238024,-1380.87600647,0.00039174,2]
[400350152,1767412238040,-24845.04712779,0.00039174,2]
[400350153,1767412238089,-702.4362138,0.00039174,2]
[400350156,1767412240024,-481670.28757512,0.00039174,2]
[400350157,1767412240236,-491401.35307682,0.00039174,2]
[400350158,1767412240248,-163.87,0.00039233,2]
[400350159,1767412240260,-227.88,0.00039274,30]
[400350160,1767412240272,-1360.655,0.00039274,2]
[400350161,1767412240283,-613.0,0.00039274,2]
[400350162,1767412240294,-1404.0,0.00039274,2]
[400350163,1767412240305,-3471.882,0.00039274,2]
[400350164,1767412240316,-433.0,0.00039274,2]
[400350165,1767412240327,-1265.0,0.00039274,2]
[400350166,1767412240340,-2434.0,0.00039274,2]
[400350167,1767412240354,-4814.0,0.00039274,2]
[400350168,1767412240366,-566.783,0.00039274,2]
[400350169,1767412240377,-227.88,0.00039548,30]
[400350170,1767412240388,-10987.995474,0.00039552,2]
[400350171,1767412240398,-166.66,0.00039773,30]
[400350172,1767412240409,-227.88,0.00039822,30]
[400350173,1767412240420,-508.0,0.00039901,13]
[400350174,1767412240432,-168.0,0.00039994,2]
[400350175,1767412240443,-154.0,0.0004,120]
[400350176,1767412240454,-168.0,0.00040022,2]
[400350177,1767412240466,-227.88,0.00040096,30]
[400350178,1767412240476,-787.30423843,0.00040109,30]
[400350179,1767412240488,-3970.57155337,0.00040185,5]
[400350180,1767412240499,-586.72827457,0.00040185,5]
[400350183,1767412240514,-264.0,0.00040211,2]
[400350185,1767412240525,-168.0,0.00040219,2]
[400350187,1767412240539,-710.39,0.00040235,30]
[400350190,1767412240550,-227.91,0.0004037,30]
[400350191,1767412240561,-506.27037057,0.00040444,7]
[400350193,1767412240573,-168.0,0.00040444,7]
[400350196,1767412240584,-705.245,0.00040444,58]
[400350198,1767412240595,-244.75,0.00040481,120]
[400350200,1767412240606,-168.0,0.00040503,7]
[400350202,1767412240617,-1000.0,0.00040557,2]
[400350204,1767412240628,-166.66,0.0004061,30]
[400350206,1767412240639,-260.59,0.0004073,2]
[400350208,1767412240650,-154.0,0.000408,120]
[400350210,1767412240660,-5000.0,0.00040829,120]
[400350212,1767412240671,-857.7,0.00040891,6]
[400350214,1767412240681,-177.95,0.00041049,120]
[400350217,1767412240691,-254.42910147,0.00041095,120]
[400350219,1767412240702,-297.28073355,0.00041096,2]
[400350221,1767412240712,-250.6621,0.000411,30]
[400350223,1767412240722,-660.63,0.00041123,30]
[400350225,1767412240732,-660.63,0.00041123,30]
[400350227,1767412240742,-660.63,0.00041123,30]
[400350229,1767412240753,-660.63,0.00041123,30]
[400350231,1767412240764,-211.28,0.00041123,30]
[400350233,1767412240774,-1352.6,0.00041139,30]
[400350235,1767412240785,-168.0,0.00041283,7]
[400350237,1767412240796,-1352.6,0.00041386,30]
[400350239,1767412240807,-150.0,0.00041397,30]
[400350242,1767412240818,-150.0,0.00041397,30]
[400350244,1767412240830,-150.0,0.00041397,30]
[400350246,1767412240842,-150.0,0.00041397,30]
[400350248,1767412240854,-150.0,0.00041397,30]
[400350251,1767412240866,-150.0,0.00041397,30]
[400350253,1767412240875,-600.0,0.00041413,60]
[400350255,1767412240886,-500.0,0.00041413,60]
[400350256,1767412240896,-1000.0,0.00041413,60]
[400350258,1767412240906,-166.66,0.00041448,30]
[400350260,1767412240931,-154.0,0.000415,120]
[400350261,1767412240945,-1352.6,0.00041634,30]
[400350262,1767412240957,-5004.04964202,0.00041668,4]
[400350263,1767412240968,-2657.94325245,0.00041706,7]
[400350264,1767412240980,-503.87,0.000418,120]
[400350265,1767412240991,-1016.0,0.000418,7]
[400350266,1767412241003,-168.0,0.00041812,120]
[400350267,1767412241015,-1352.6,0.00041881,30]
[400350268,1767412241027,-660.63,0.00041941,30]
[400350269,1767412241039,-500.0,0.00041953,30]
[400350270,1767412241051,-500.0,0.00041953,30]
[400350271,1767412241063,-570.0,0.00041953,30]
[400350272,1767412241074,-600.0,0.00041961,60]
[400350273,1767412241087,-1000.0,0.00041961,60]
[400350274,1767412241098,-660.63,0.00042041,30]
[400350275,1767412241109,-500.0,0.00042045,7]
[400350276,1767412241122,-500.0,0.00042045,7]
[400350277,1767412241133,-500.0,0.00042045,7]
[400350278,1767412241145,-500.0,0.00042045,7]
[400350279,1767412241155,-517.92,0.00042045,7]
[400350280,1767412241166,-150.0,0.00042078,30]
[400350281,1767412241177,-851.0,0.00042079,16]
[400350282,1767412241187,-481.83,0.00042082,30]
[400350283,1767412241198,-481.83,0.00042082,30]
[400350284,1767412241208,-168.0,0.00042084,2]
[400350285,1767412241218,-1352.6,0.00042129,30]
[400350286,1767412241229,-932.34147361,0.00042143,120]
[400350287,1767412241239,-211.23,0.00042178,30]
[400350288,1767412241250,-614.19,0.00042183,30]
[400350289,1767412241260,-407.85,0.000422,120]
[400350290,1767412241279,-150.0,0.00042219,30]
[400350291,1767412241291,-150.0,0.00042219,30]
[400350292,1767412241301,-150.0,0.00042219,30]
[400350293,1767412241312,-1329.0,0.00042274,2]
[400350294,1767412241323,-613.0,0.00042274,2]
[400350295,1767412241335,-1404.0,0.00042274,2]
[400350296,1767412241346,-3464.0,0.00042274,2]
[400350297,1767412241358,-433.0,0.00042274,2]
[400350298,1767412241369,-1265.0,0.00042274,2]
[400350299,1767412241380,-2434.0,0.00042274,2]
[400350300,1767412241392,-4814.0,0.00042274,2]
[400350301,1767412241403,-166.66,0.00042285,30]
[400350302,1767412241414,-154.0,0.000423,120]
[400350303,1767412241426,-1000.0,0.000424,7]
[400350304,1767412241437,-600.0,0.00042509,60]
[400350305,1767412241448,-1000.0,0.00042509,60]
[400350306,1767412241464,-500.0,0.00042509,60]
[400350307,1767412241475,-901.90059,0.0004252,120]
[400350308,1767412241486,-901.9006,0.0004252,120]
[400350309,1767412241497,-901.90059,0.0004252,120]
[400350310,1767412241508,-901.90059,0.0004252,120]
[400350311,1767412241518,-901.9006,0.0004252,120]
[400350312,1767412241530,-5482.79,0.00042546,120]
[400350313,1767412241541,-168.0,0.000426,2]
[400350314,1767412241552,-168.0,0.00042627,2]
[400350315,1767412241563,-14210.85184674,0.00042637,15]
[400350316,1767412241574,-14210.85184673,0.00042666,15]
[400350317,1767412241585,-3200.0,0.0004268,120]
[400350318,1767412241596,-408.33980197,0.00042688,31]
[400350319,1767412241608,-500.0,0.00042688,31]
[400350320,1767412241623,-500.0,0.00042688,31]
[400350321,1767412241635,-500.0,0.00042688,31]
[400350322,1767412241645,-500.0,0.00042688,31]
[400350323,1767412241657,-500.0,0.00042688,31]
[400350324,1767412241669,-500.0,0.00042688,31]
[400350325,1767412241680,-424.51802853,0.00042688,31]
[400350326,1767412241691,-500.0,0.00042688,31]
[400350327,1767412241703,-500.0,0.00042688,31]
[400350328,1767412241713,-500.0,0.00042688,31]
[400350329,1767412241725,-500.0,0.00042688,31]
[400350330,1767412241735,-500.0,0.00042688,31]
[400350331,1767412241748,-500.0,0.00042688,31]
[400350332,1767412241759,-500.0,0.00042688,31]
[400350333,1767412241769,-500.0,0.00042688,31]
[400350334,1767412241780,-500.0,0.00042688,31]
[400350335,1767412241791,-500.0,0.00042688,31]
[400350336,1767412241803,-500.0,0.00042688,31]
[400350337,1767412241814,-500.0,0.00042688,31]
[400350338,1767412241826,-500.0,0.00042688,31]
[400350339,1767412241837,-500.0,0.00042688,31]
[400350340,1767412241847,-500.0,0.00042688,31]
[400350341,1767412241859,-500.0,0.00042688,31]
[400350342,1767412241870,-500.0,0.00042688,31]
[400350343,1767412241880,-500.0,0.00042688,31]
[400350344,1767412241891,-173.02395918,0.00042688,31]
[400350345,1767412241902,-500.0,0.00042688,31]
[400350346,1767412241913,-500.0,0.00042688,31]
[400350347,1767412241926,-2500.0,0.0004269,2]
[400350348,1767412241940,-14210.85184673,0.00042695,15]
[400350349,1767412241951,-604.45,0.000427,12]
[400350350,1767412241962,-5000.0,0.000427,120]
[400350351,1767412241972,-176.35313701,0.000427,30]
[400350352,1767412241984,-177.92626416,0.000427,8]
[400350353,1767412241999,-173.73062455,0.000427,19]
[400350354,1767412242012,-173.73062453,0.00042703,19]
[400350355,1767412242026,-173.73062453,0.00042705,19]
[400350356,1767412242037,-372.84700864,0.00042715,7]
[400350357,1767412242049,-151.44,0.00042715,2]
[400350358,1767412242060,-14210.85184673,0.00042725,15]
[400350359,1767412242071,-1000.0,0.0004273,14]
[400350360,1767412242081,-1000.0,0.00042737,14]
[400350361,1767412242092,-150.0,0.00042746,14]
[400350362,1767412242103,-177.92626412,0.00042751,8]
[400350363,1767412242115,-14210.85184673,0.00042754,15]
[400350364,1767412242126,-1000.0,0.00042754,14]
[400350365,1767412242138,-1000.0,0.00042758,14]
[400350366,1767412242150,-1000.0,0.00042759,14]
[400350367,1767412242161,-1000.0,0.00042766,14]
[400350368,1767412242172,-1000.0,0.0004278,14]
[400350369,1767412242183,-150.0,0.00042781,14]
[400350370,1767412242195,-1000.0,0.00042782,14]
[400350371,1767412242206,-14210.85184673,0.00042783,15]
[400350372,1767412242217,-1000.0,0.00042785,14]
[400350373,1767412242228,-1000.0,0.00042786,14]
[400350374,1767412242239,-1000.0,0.00042787,14]
[400350375,1767412242250,-4775.0,0.0004279,7]
[400350376,1767412242262,-71631.1296176,0.0004279,4]
[400350377,1767412242272,-2357.71872032,0.0004279,4]
[400350378,1767412242283,-1000.0,0.00042791,14]
[400350379,1767412242294,-150.0,0.00042793,14]
[400350380,1767412242305,-1000.0,0.00042798,14]
[400350381,1767412242316,-1000.0,0.00042798,14]
[400350382,1767412242327,-1000.0,0.00042798,14]
[400350383,1767412242342,-153.0,0.00042799,30]
[400350384,1767412242352,-999.0,0.00042799,120]
[400350385,1767412242363,-150.0,0.000428,120]
[400350386,1767412242373,-1000.0,0.000428,2]
[400350387,1767412242384,-11849.56857893,0.000428,30]
[400350388,1767412242395,-600.0,0.000428,120]
[400350389,1767412242406,-194.94926691,0.000428,30]
[400350390,1767412242417,-177.92626412,0.00042803,9]
[400350391,1767412242430,-1000.0,0.00042803,14]
[400350392,1767412242440,-1000.0,0.00042803,14]
[400350393,1767412242451,-1000.0,0.00042805,14]
[400350394,1767412242462,-1000.0,0.00042805,14]
[400350395,1767412242473,-14210.85184673,0.00042812,15]
[400350396,1767412242484,-187.91,0.00042817,14]
[400350397,1767412242495,-1000.0,0.00042821,14]
[400350398,1767412242506,-1050.07433214,0.00042821,14]
[400350399,1767412242517,-1031.72198097,0.00042833,14]
[400350400,1767412242528,-1000.0,0.00042838,14]
[400350401,1767412242539,-1000.0,0.0004284,14]
[400350402,1767412242550,-14210.85184673,0.00042842,15]
[400350403,1767412242562,-1000.0,0.00042842,14]
[400350404,1767412242572,-182.112036,0.00042842,120]
[400350405,1767412242583,-1000.0,0.00042846,14]
[400350406,1767412242594,-1000.0,0.00042848,14]
[400350407,1767412242605,-1000.0,0.00042853,14]
[400350408,1767412242616,-1000.0,0.00042854,14]
[400350409,1767412242627,-177.92626412,0.00042854,9]
[400350410,1767412242637,-1000.0,0.00042861,14]
[400350411,1767412242648,-1000.0,0.00042868,14]
[400350413,1767412243021,-1000.0,0.00042869,14]
[400350414,1767412243048,-14210.85184673,0.00042871,15]
[400350415,1767412243061,-151.44,0.00042873,2]
[400350416,1767412243071,-161.1363835,0.0004288,120]
[400350417,1767412243082,-3859.3287923,0.00042883,2]
[400350418,1767412243093,-196603.4555185,0.00042883,2]
[400350419,1767412243103,-271.251734,0.00042883,5]
[400350420,1767412243114,-155.158769,0.00042883,14]
[400350421,1767412243124,-151.0,0.00042883,120]
[400350422,1767412243134,-151.0,0.00042883,120]
[400350423,1767412243144,-243.89157,0.00042883,120]
[400350424,1767412243158,-155.846345,0.00042883,120]
[400350425,1767412243168,-151.0,0.00042883,10]
[400350426,1767412243179,-151.0,0.00042883,10]
[400350427,1767412243189,-151.0,0.00042883,10]
[400350428,1767412243199,-151.0,0.00042883,120]
[400350429,1767412243209,-249.243377,0.00042883,120]
[400350430,1767412243219,-151.0,0.00042883,120]
[400350431,1767412243229,-153.094855,0.00042883,28]
[400350432,1767412243239,-153.094855,0.00042883,28]
[400350433,1767412243249,-153.094855,0.00042883,28]
[400350434,1767412243259,-153.094855,0.00042883,28]
[400350435,1767412243269,-180.194047,0.00042883,120]
[400350436,1767412243279,-213.952354,0.00042883,120]
[400350437,1767412243289,-151.0,0.00042883,120]
[400350438,1767412243299,-150.0,0.00042884,14]
[400350439,1767412243308,-1000.0,0.00042886,14]
[400350440,1767412243318,-151.44,0.0004289,2]
[400350441,1767412243327,-666.0,0.00042899,30]
[400350442,1767412243337,-300.0,0.00042899,30]
[400350443,1767412243350,-300.0,0.00042899,30]
[400350444,1767412243359,-670.68068141,0.00042899,30]
[400350445,1767412243370,-300.0,0.00042899,30]
[400350446,1767412243379,-2021.5931,0.000429,2]
[400350447,1767412243390,-157.3377926,0.000429,30]
[400350448,1767412243400,-151.0,0.000429,120]
[400350449,1767412243410,-151.0,0.000429,120]
[400350450,1767412243421,-151.0,0.000429,10]
[400350451,1767412243431,-151.0,0.000429,10]
[400350452,1767412243441,-151.0,0.000429,10]
[400350453,1767412243451,-255555.0,0.000429,120]
[400350454,1767412243460,-252.624269,0.000429,120]
[400350455,1767412243470,-151.786901,0.000429,120]
[400350456,1767412243481,-150.0,0.000429,120]
[400350457,1767412243492,-153.094855,0.000429,28]
[400350458,1767412243503,-153.094855,0.000429,28]
[400350459,1767412243514,-153.094855,0.000429,28]
[400350460,1767412243524,-382.31016565,0.000429,2]
[400350461,1767412243535,-153.094855,0.000429,28]
[400350462,1767412243544,-205.3566313,0.000429,8]
[400350463,1767412243554,-14210.85184673,0.000429,15]
[400350464,1767412243564,-749.47552681,0.000429,2]
[400350465,1767412243574,-213.01886767,0.000429,2]
[400350466,1767412243584,-151.0,0.000429,120]
[400350468,1767412243594,-196.90608493,0.000429,2]
[400350469,1767412243604,-961.16139388,0.000429,2]
[400350470,1767412243614,-333.7439573,0.00042905,30]
[400350471,1767412243623,-300.0,0.00042905,30]
[400350472,1767412243633,-300.0,0.00042905,30]
[400350473,1767412243643,-177.92626412,0.00042905,9]
[400350474,1767412243653,-414.0,0.00042906,120]
[400350475,1767412243662,-429.318,0.00042906,120]
[400350476,1767412243672,-445.202766,0.00042906,120]
[400350477,1767412243681,-461.67526834,0.00042906,120]
[400350478,1767412243691,-478.75725327,0.00042906,120]
[400350479,1767412243701,-496.47127164,0.00042906,120]
[400350480,1767412243710,-514.84070869,0.00042906,120]
[400350481,1767412243720,-533.88981491,0.00042906,120]
[400350482,1767412243730,-553.64373807,0.00042906,120]
[400350483,1767412243752,-574.12855637,0.00042906,120]
[400350484,1767412243764,-595.37131296,0.00042906,120]
[400350485,1767412243774,-617.40005154,0.00042906,120]
[400350486,1767412243784,-640.24385345,0.00042906,120]
[400350487,1767412243795,-663.93287602,0.00042906,120]
[400350488,1767412243805,-792.71160459,0.00042906,120]
[400350489,1767412243816,-300.0,0.00042908,30]
[400350490,1767412243826,-19293.74734429,0.00042909,2]
[400350491,1767412243836,-152.0,0.00042909,14]
[400350492,1767412243846,-151.0,0.00042909,14]
[400350493,1767412243856,-1258.0,0.00042909,14]
[400350494,1767412243866,-151.0,0.00042909,14]
[400350495,1767412243876,-152.0,0.00042909,14]
[400350496,1767412243887,-1258.0,0.00042909,14]
[400350497,1767412243897,-151.0,0.00042909,14]
[400350498,1767412243907,-152.0,0.00042909,14]
[400350499,1767412243918,-1258.0,0.00042909,14]
[400350500,1767412243929,-151.0,0.00042909,14]
[400350501,1767412243942,-152.0,0.00042909,14]
[400350502,1767412243953,-151.0,0.00042909,14]
[400350503,1767412243963,-1095.52601387,0.00042909,14]
[400350504,1767412243973,-152.0,0.00042909,14]
[400350505,1767412243985,-151.0,0.00042909,14]
[400350506,1767412243995,-151.0,0.00042909,14]
[400350507,1767412244006,-152.0,0.00042909,14]
[400350508,1767412244016,-1258.0,0.00042909,14]
[400350509,1767412244026,-151.0,0.00042909,14]
[400350510,1767412244036,-152.0,0.00042909,14]
[400350511,1767412244046,-1258.0,0.00042909,14]
[400350512,1767412244056,-151.0,0.00042909,14]
[400350513,1767412244066,-152.0,0.00042909,14]
[400350514,1767412244076,-1258.0,0.00042909,14]
[400350515,1767412244086,-151.0,0.00042909,14]
[400350516,1767412244095,-206.21647338,0.00042909,14]
[400350517,1767412244110,-151.0,0.00042909,14]
[400350518,1767412244120,-151.0,0.00042909,14]
[400350519,1767412244131,-151.0,0.00042909,14]
[400350520,1767412244141,-207.51524834,0.00042909,14]
[400350521,1767412244151,-749.47552676,0.00042909,2]
[400350522,1767412244162,-151.0,0.00042909,14]
[400350523,1767412244172,-152.0,0.00042909,14]
[400350524,1767412244182,-187.91,0.00042913,14]
[400350525,1767412244193,-749.47552676,0.00042918,2]
[400350526,1767412244203,-1000.0,0.00042919,14]
[400350527,1767412244213,-961.16139385,0.00042922,2]
[400350528,1767412244223,-545.05418294,0.00042926,15]
[400350529,1767412244233,-749.47552676,0.00042927,2]